{"text_format":"3","workbook":"xlsx","n_sheets":13,"sheets":["Pornire","Noțiuni de bază","Introducere în funcții","AVERAGE","MIN și MAX","Dată și oră","Unirea textelor și a numerelor","Instrucțiunile IF","VLOOKUP","Funcții condiționale","Expertul de funcții","Erorile din formule","Aflați mai multe"],"not_rendered":{"images":30,"defined_names":21},"read":"whole","date_system":"1900"}

{"sheet":"Pornire","index":0,"n_rows":4,"n_cols":1,"rows_kept":4}
[]
["Începeți lucrul cu formule"]
["În doar câțiva pași, veți începe să creați formule și funcții în Excel, cea mai puternică \naplicație pentru foi de calcul din lume."]
["Mergeți înapoi la început apăsând CTRL+HOME. Pentru a începe turul, apăsați CTRL+PAGE DOWN."]

{"sheet":"Noțiuni de bază","index":1,"n_rows":43,"n_cols":10,"rows_kept":43}
["Noțiunile de bază: matematică cu Excel"]
["Puteți aduna, scădea, înmulți și împărți în Excel, fără a utiliza funcții predefinite. Este nevoie doar să utilizați câțiva operatori de bază: +, -, *, /. Toate formulele încep cu un semn egal (=).\n",null,"Numere de utilizat:",null,"Operație:","Formule:","Răspunsuri:"]
["Pentru a aduna, selectați celula F3, tastați =C3+C4, apoi apăsați Enter. \n",null,1,null,"Adunare (+) ",null,{"$f":"C3+C4","v":3}]
["Pentru a scădea, selectați celula F4, tastați =C3-C4, apoi apăsați Enter. ",null,2,null,"Scădere (-) ",null,{"$f":"C3-C4","v":-1}]
["Pentru a înmulți, selectați celula F5, tastați =C3*C4, apoi apăsați Enter.\n",{"$nulls":3},"Înmulțire (*) ",null,{"$f":"C3*C4","v":2}]
["Pentru a împărți, selectați celula F6, tastați =C3/C4, apoi apăsați Enter.\n",{"$nulls":3},"Împărțire (/) ",null,{"$f":"C3/C4","v":0.5}]
["Încercați asta: modificați numerele din celulele C3 și C4 și urmăriți cum rezultatele formulei se schimbă automat.",{"$nulls":3},"Putere (^) ",null,{"$f":"C3^C4","v":1}]
["CREDIT SUPLIMENTAR: Puteți ridica o valoare la o putere utilizând simbolul caret (^) astfel: =A1^A2. Îl puteți introduce cu Shift+6. În celula F7, introduceți =C3^C4."]
["Defilați în jos pentru mai multe detalii"]
["Următorul pas"]
["Mai multe despre formule, celule și zone"]
["Excel este alcătuit din celule individuale, grupate în rânduri și coloane. Rândurile sunt numerotate, iar coloanele sunt notate cu litere. Există peste 1 milion de rânduri și 16.000 de coloane și puteți introduce formule în oricare dintre ele. \n"]
["Formulele pot conține referințe la celule, referințe la zone de celule, operatori și constante. Iată câteva exemple de formule:\n\n=A1+B1\n=10+20\n=SUM(A1:A10)\n\n"]
["Veți observa că, în al treilea exemplu de mai sus, am utilizat funcția SUM. O funcție este o comandă predefinită care preia una sau mai multe valori, le calculează într-un anumit mod și returnează un rezultat. De exemplu, funcția SUM preia referințele la celule sau zone pe care le specificați și le adună. În acest exemplu, ia celulele de la A1 la A10 și le adună. Excel are peste 400 de funcții, pe care le puteți explora din fila Formule.\n"]
["Formulele cu funcții încep cu semnul egal, apoi urmează numele funcției cu argumentele sale (valorile utilizate pentru calcule) încadrate între paranteze. \n"]
["Confirmați o formulă apăsând Enter. După ce faceți acest lucru, formula va realiza calculul și rezultatul se va afișa în celulă. Pentru a vedea formula propriu-zisă, puteți să analizați bara de formule de sub panglică sau să apăsați F2 pentru a intra în modul Editare, unde veți vedea formula în celulă. Apăsați Enter din nou pentru a finaliza formula și a calcula rezultatul.\n\n"]
["Explicații privind formulele"]
["=10+20 este o formulă în care 10 și 20 sunt constante, iar semnul + este operatorul."]
["=SUM(A1:A10) este o formulă în care SUM este numele funcției, parantezele de deschidere și de închidere conțin argumentele formulei, iar A1:A10 este zona de celule a funcției."]
["=SUM(A1:A10;C1:C10) este o formulă în care SUM este numele funcției, parantezele de deschidere și de închidere conțin argumentele formulei, iar A1:A10;C1:C10 sunt zonele de celule ale funcției, separate printr-o virgulă."]
["DE REȚINUT: Constantele sunt valori pe care le introduceți în celule sau formule. Deși =10+20 se poate calcula la fel ca =A1+B1, constantele nu sunt o idee bună. De ce? Pentru că nu puteți vedea cu ușurință constanta fără să selectați celula și s-o căutați. Acest lucru poate îngreuna modificarea ulterioară. Este mult mai ușor să plasați constantele în celule, unde pot fi ajustate cu ușurință și unde puteți face referire la ele în formule.\n\nDe exemplu: Selectați celula galbenă cu 12 de mai jos. Veți vedea că am utilizat funcția SUM cu o zonă de celule. Nu am tastat „4” sau „8” direct în formulă. \n"]
["Anterior"]
["Următorul"]
["Mai multe informații de pe web"]
["Utilizați Excel drept calculator"]
["Prezentare generală a formulelor din Excel"]
["Funcții Excel (după categorie) "]
["Funcții Excel (în ordine alfabetică) "]
["Instruire gratuită pentru Excel online"]
{"$rows_empty":10}
[{"$nulls":9},"Valori"]
[{"$nulls":9},4]
[{"$nulls":9},8]
[{"$nulls":9},{"$f":"SUM(J41:J42)","v":12}]

{"sheet":"Introducere în funcții","index":2,"n_rows":51,"n_cols":7,"rows_kept":51}
["Introducere în funcții"]
["Funcțiile vă oferă abilitatea de a face diverse lucruri, cum ar fi să efectuați operații matematice, să căutați valori sau chiar să calculați date și ore. Să încercăm câteva modalități de a adăuga valori, cu funcția SUM.",null,"Fructe","Sumă",null,"Carne","Sumă"]
["Sub coloana Cantitate pentru Fruct (celula D7), introduceți =SUM(D3:D6) sau tastați =SUM(, apoi selectați zona respectivă cu mouse-ul și apăsați Enter. Acest lucru va aduna valorile din celulele D3, D4, D5 și D6. Răspunsul dvs. ar trebui să fie 170.\n",null,"Mere",50,null,"Carne de vită",50]
["Acum să încercăm însumarea automată. Selectați celula de sub coloana pentru Carne (celula G7), apoi accesați Formule > Însumare automată > selectați Sumă. Veți vedea că Excel introduce automat formula pentru dvs. Apăsați Enter pentru a o confirma. Caracteristica Însumare automată are cele mai comune funcții.\n",null,"Portocale",20,null,"Carne de pui",30]
["Iată o comandă rapidă interesantă de la tastatură. Selectați celula D15, apoi apăsați Alt =, apoi Enter. Acest lucru introduce automat SUM pentru dvs.",null,"Banane",60,null,"Carne de porc",10]
["Defilați în jos pentru mai multe detalii",null,"Lămâi",40,null,"Pește",50]
["CREDIT SUPLIMENTAR\nÎncercați funcția COUNT utilizând oricare dintre metodele încercate deja. Funcția COUNT contorizează numărul de celule dintr-o zonă care conține numere.",null,"SUM > ",{"$f":"SUM(D3:D6)","v":170},null,"SUM > "]
["Următorul pas"]
["Mai multe despre funcții",null,"Articol","Sumă",null,"Articol","Sumă"]
["Accesați fila Formule și navigați prin Bibliotecă de funcții, unde funcțiile sunt listate după categorie, cum ar fi Text, Dată și oră etc. Inserare funcție vă va permite să căutați funcții după nume și să lansați un expert de funcții care vă poate ajuta să construiți o formulă. \n\nAtunci când începeți să tastați un nume de funcție după ce apăsați =, Excel va lansa IntelliSense, care va lista toate funcțiile care încep cu literele tastate. Atunci când o găsiți pe cea dorită, apăsați Tab și Excel va termina automat numele funcției și va introduce paranteza de deschidere. În plus, va afișa argumentele obligatorii și opționale. \n\n\n\nAcum să vedem anatomia câtorva funcții. Funcția SUM este structurată astfel:",null,"Pâine",50,null,"Pâine",50]
["Dacă funcția SUM putea vorbi, ar spune: „returnează suma tuturor valorilor din celulele de la D35 la D38 și toată coloana H. SUM este numele funcției, D35:D38 este argumentul pentru prima zonă, care este aproape întotdeauna obligatoriu, iar H:H este argumentul pentru a doua zonă, separat prin virgulă. Acum, să încercăm una care nu necesită niciun argument.\n",null,"Gogoși",100,null,"Gogoși",100]
["Funcția TODAY returnează data de astăzi. Aceasta se va actualiza automat atunci când Excel recalculează.",null,"Fursecuri",40,null,"Fursecuri",40]
["ÎNCERCAȚI ASTA\nSelectați aceste celule. Apoi, în colțul din dreapta jos al ferestrei Excel, căutați SUM: 170 în bara din partea de jos. Aceasta se numește bara de stare și este doar un alt mod de a găsi rapid un total și alte detalii despre o celulă sau o zonă selectată. ",null,"Torturi",50,null,"Torturi",50]
["DETALIU IMPORTANT\nFaceți dublu clic pe această celulă. Veți observa numărul 100 spre sfârșit. Deși este posibil să introduceți numere într-o astfel de formulă, nu recomandăm acest lucru decât dacă este absolut necesar. Aceasta este cunoscută drept constantă și este ușor să uitați că se află acolo. Vă recomandăm să faceți referire la o altă celulă în schimb, cum ar fi celula F51. Astfel numărul va fi mai vizibil și nu ascuns într-o formulă. ",null,"Tarte",20,null,"Tarte",20]
["Mai multe informații de pe web",null,"SUM > ",null,null,"COUNT >"]
["Totul despre funcția SUM"]
["Utilizarea Însumării automate pentru a aduna numere"]
["Totul despre funcția COUNT"]
["Instruire gratuită pentru Excel online"]
["Înapoi la început"]
["Următorul pas"]
{"$rows_empty":12}
[null,null,"Fructe","Sumă"]
[null,null,"Mere",50]
[null,null,"Portocale",20]
[null,null,"Banane",60]
[null,null,"Lămâi",40]
[null,null,"SUM > ",{"$f":"SUM(D35:D38)","v":170}]
[]
[]
[]
[]
[null,null,"Articol","Sumă"]
[null,null,"Mașini",20]
[null,null,"Camioane",10]
[null,null,"Biciclete",10]
[null,null,"Role",40]
[]
[{"$nulls":3},"Total:",null,"Valoare suplimentară","Total nou"]
[{"$nulls":3},{"$f":"SUM(D45:D48,100)","v":180},null,100,{"$f":"SUM(D45:D48,F51)","v":180}]

{"sheet":"AVERAGE","index":3,"n_rows":15,"n_cols":7,"rows_kept":15}
["Funcția AVERAGE"]
["Utilizați funcția AVERAGE pentru a obține media aritmetică a numerelor dintr-o zonă de celule.",null,"Fructe","Sumă",null,"Carne","Sumă"]
["Selectați celula D7, apoi utilizați Însumare automată pentru a adăuga o funcție AVERAGE.",null,"Mere",50,null,"Carne de vită",50]
["Acum selectați celula G7 și introduceți o funcție AVERAGE tastând =AVERAGE(G3:G6). ",null,"Portocale",20,null,"Carne de pui",30]
["În celula D15, puteți utiliza Însumare automată sau puteți tasta pentru a introduce o altă funcție AVERAGE. ",null,"Banane",60,null,"Carne de porc",10]
["ÎNCERCAȚI ASTA\nSelectați orice zonă de numere, apoi căutați în bara de stare o medie instantanee.\n",null,"Lămâi",40,null,"Pește",50]
["Activați foaia anterioară",null,"AVERAGE >",null,null,"AVERAGE >"]
["Mergeți la foaia următoare"]
["CREDIT SUPLIMENTAR\nÎncercați să utilizați MEDIAN sau MODE aici. \n\nMEDIAN vă oferă valoarea din mijlocul setului de date, în timp ce \nMODE oferă valoarea care apare cel mai frecvent.\n",null,"Articol","Sumă",null,"Articol","Sumă"]
["Linkuri pentru mai multe informații de pe web",null,"Pâine",50,null,"Pâine",50]
["Selectați pentru a afla totul despre funcția AVERAGE de pe web",null,"Gogoși",100,null,"Gogoși",100]
["Selectați pentru a afla totul despre funcția MEDIAN de pe web",null,"Fursecuri",40,null,"Fursecuri",40]
["Selectați pentru a afla totul despre funcția MODE de pe web",null,"Torturi",50,null,"Torturi",50]
["Selectați pentru a afla despre instruirea gratuită în Excel de pe web",null,"Tarte",20,null,"Tarte",20]
[null,null,"AVERAGE >"]

{"sheet":"MIN și MAX","index":4,"n_rows":15,"n_cols":7,"rows_kept":15}
["Funcțiile MIN și MAX"]
["Utilizați funcția MIN pentru a obține numărul minim dintr-o zonă de celule.",null,"Fructe","Sumă",null,"Carne","Sumă"]
["Utilizați funcția MAX pentru a obține numărul maxim dintr-o zonă de celule.",null,"Mere",50,null,"Carne de vită",50]
["Selectați celula D7, apoi utilizați Expertul Însumare automată pentru a adăuga o funcție MIN.\n",null,"Portocale",20,null,"Carne de pui",30]
["Acum selectați celula G7 și introduceți o funcție MAX tastând =MAX(G3:G6).\n",null,"Banane",60,null,"Carne de porc",10]
["În celula D15, puteți să utilizați Expertul însumare automată sau să tastați pentru a introduce o funcție MIN sau MAX. \n",null,"Lămâi",40,null,"Pește",50]
["Mai multe informații de pe web\n",null,"MIN >",null,null,"MAX >"]
["Totul despre funcția MIN"]
["Totul despre funcția MAX",null,"Articol","Sumă",null,"Articol","Sumă"]
["Instruire gratuită pentru Excel online",null,"Pâine",50,null,"Pâine",50]
["DE REȚINUT\nPuteți utiliza MIN sau MAX cu mai multe zone sau valori pentru a afișa valoarea mai mare sau mică dintre acestea, cum ar fi =MIN(A1:A10;B1:B10) sau= MAX(A1:A10;B1), unde B1 conține o valoare de prag, cum ar fi 10, caz în care formula nu ar returna niciodată un rezultat mai mic de 10.\n",null,"Gogoși",100,null,"Gogoși",100]
[null,null,"Fursecuri",40,null,"Fursecuri",40]
[null,null,"Torturi",50,null,"Torturi",50]
[null,null,"Tarte",20,null,"Tarte",20]
[null,null,"MIN sau MAX >",{"$nulls":3},{"$f":"MIN(G10:G14,10)","v":10}]

{"sheet":"Dată și oră","index":5,"n_rows":47,"n_cols":6,"rows_kept":47,"merged":[[4,2,4,3],[26,2,26,3],[30,2,30,3],[44,2,44,3]]}
["Funcții de dată"]
["Excel vă poate oferi data curentă, pe baza setărilor regionale ale computerului. De asemenea, puteți să adunați și să scădeți date."]
["Vedeți funcția TODAY, care vă oferă data de astăzi. Acestea sunt funcții „în direct” sau „volatile”, astfel că atunci când veți deschide registrul de lucru mâine, va apărea data de mâine. Introduceți =TODAY() în celula D6. \n"]
["Scăderea datelor - Introduceți următoarea dvs. zi de naștere în formatul DD.MM.YY în celula D7 și Excel vă va spune câte zile mai sunt până atunci, utilizând =D6-D7 în celula D8.\n"]
["Adunarea datelor - Să presupunem că doriți să știți când este scadentă o factură sau când trebuie să returnați o carte la bibliotecă. Puteți aduna zile la o dată pentru a afla. În celula D10, introduceți un număr aleator de zile. În celula D11, am adunat =D6+D10 pentru a calcula data scadentă începând de azi.\n",null,"Funcții de dată"]
["DE REȚINUT\nExcel menține datele și orele pe baza numărului de zile care au trecut de la 1 ianuarie 1900. Orele sunt păstrate în porțiuni fracționare ale unei zile, pe bază de minute. Așadar, 01.01.2017, 12:30 este stocat de fapt ca 42736.5208. Dacă ora sau data apar ca numere similare acestora, atunci puteți să apăsați Ctrl+1 > Număr > și să selectați un format de Dată sau Oră. ",null,"Data de azi:",null,null,{"$f":"IF(D6=TODAY(),\"You got it!\",\"\")","v":""}]
["DETALIU IMPORTANT\nDacă nu doriți ca Excel să afișeze un număr negativ deoarece nu v-ați introdus încă ziua de naștere, puteți utiliza o funcție IF astfel: =IF(D7=\"\",\"\",D7-D6), care spune „Dacă D7 este egal cu nimic, nu afișați nimic; altfel, afișați D7 minus D6”.\n",null,"Ziua dvs. de naștere:"]
["Funcții de oră",null,"Zile până la ziua dvs. de naștere:",{"$f":"D7-D6","v":0}]
["Excel vă poate oferi ora curentă pe baza setărilor regionale ale computerului. De asemenea, puteți să adunați și să scădeți orele. De exemplu, puteți avea nevoie să țineți evidența numărului de ore lucrate de un angajat în fiecare săptămână și să-i calculați plata și orele suplimentare.\n"]
["În celula D28, introduceți =NOW(), care vă va oferi ora curentă și se va actualiza de fiecare dată când Excel calculează. Dacă trebuie să modificați formatul Oră, puteți să accesați Ctrl+1 > Număr > Oră > și să selectați formatul dorit.\n",null,"Zile din perioada de grație:"]
["Adunați orele dintre momentele de timp - În celula D36, am introdus =((D35-D32)-(D34-D33))*24, care calculează orele de început și de sfârșit ale cuiva, apoi scade pauza de prânz. *24 de la sfârșitul formulei face conversia în ore a părții fracționare a zilei pe care Excel o vede. Va trebui totuși să formatați celula ca Număr. Pentru a face acest lucru, accesați Pornire > Format > Celule (Ctrl+1) > Număr > Număr > 2 zecimale.\n\n",null,"Factură scadentă pe:",{"$f":"D6+D10","v":"00:00:00"}]
["Dacă această formulă ar putea vorbi, ar spune: „Luați Ora plecării și scădeți-o din Ora sosirii, apoi scădeți orele de plecare și de sosire de la prânz și înmulțiți-le cu 24 pentru a efectua conversia timpului fracțional Excel în ore” sau =((Ora plecării-Ora sosirii)-(Ora sosirii de la prânz-Ora plecării la prânz))*24.\n"]
["Anterior"]
["Următorul"]
["Mai multe informații de pe web"]
["Totul despre funcția TODAY"]
["Totul despre funcția NOW"]
["Totul despre funcția DATE"]
["Instruire gratuită pentru Excel online"]
{"$rows_empty":7}
[null,null,"Funcții de oră"]
[null,null,"Ora curentă:"]
[]
[]
[null,null,"Ore lucrate pe zi:"]
[null,null,"Ora sosirii:","08:00:00"]
[null,null,"Ora plecării la prânz:","12:00:00"]
[null,null,"Ora sosirii de la prânz:","13:00:00"]
[null,null,"Ora plecării:","17:00:00"]
[null,null,"Numărul total de ore:",{"$f":"((D35-D32)-(D34-D33))*24","v":8.000000000000002}]
{"$rows_empty":8}
[null,null,"Data și ora statice"]
[null,null,"Data:","2017-09-27"]
[null,null,"Ora:","08:52:00"]

{"sheet":"Unirea textelor și a numerelor","index":6,"n_rows":37,"n_cols":6,"rows_kept":37,"merged":[[26,2,26,3],[30,2,30,3],[34,2,34,3]]}
["Unirea textului din celule diferite"]
["Există multe situații în Excel când doriți să uniți text din celule diferite. Iată un exemplu foarte obișnuit, în care aveți prenumele și numele și doriți să le combinați sub formă de prenume, nume sau nume complet. Din fericire, Excel ne permite să facem acest lucru cu semnul Ampersand (&), pe care îl puteți introduce cu Shift+7.\n",null,"Prenume","Nume de familie","Nume, Prenume","Nume complet"]
["În celula E3, introduceți =D3&C3 pentru a uni numele și prenumele. \n",null,"Alexandra","Dobre",{"$f":"D3&\", \"&C3","v":"Dobre, Alexandra"},{"$f":"C3&\" \"&D3","v":"Alexandra Dobre"}]
["DobreAlexandra nu arată chiar bine, totuși. Trebuie să adăugăm o virgulă și un spațiu. Pentru a face acest lucru, vom utiliza ghilimelele pentru a crea un nou șir de text. De această dată, introducem =D3&\", \"&C3. Porțiunea &\", \"& ne permite să unim o virgulă și un spațiu cu textul din celule.\n",null,"Andrei","Costache"]
["Pentru a crea numele complet, vom uni numele și prenumele, dar vom utiliza un spațiu fără virgulă. În F3, introducem =C3&\" \"&D3.\n",null,"Emil","Antonescu"]
["Defilați în jos pentru mai multe detalii",null,"Magda","Florea"]
["Următorul",null,"Ștefan","Milea"]
["Utilizarea textului și a numerelor împreună",null,"Iustin","Munteanu"]
["Acum vom utiliza simbolul & pentru a uni text și numere, nu doar text și text\n\nPriviți celulele C28:D29. Vedeți cum data și ora se află în celule separate? Le puteți uni folosind simbolul &, așa cum veți vedea în celulele C32:C33, dar nu arată bine, nu-i așa? Din păcate, Excel nu știe cum doriți să formatați numerele, astfel că le întrerupe în funcție de formatul lor de bază, care este cel de dată serială în acest caz. Trebuie să-i spunem explicit programului Excel cum să formateze porțiunea numerică a formulei, astfel încât ea se afișeze așa cum doriți în șirul de text rezultat. Puteți face acest lucru cu funcția TEXT și un cod de format.",null,"Daniel","Năstase"]
["În celula C36, introduceți =C28&\" \"&TEXT(D28;\"DD.MM.YYYY\"). DD.MM.YYYY este codul de formatare specific României pentru zi.lună.an, cum ar fi 25.09.2017.\n",null,"Marcela","Moldovan"]
["În celula C37, introduceți =C29&\" \"&TEXT(D29;\"H:MM\"). H:MM este codul de formatare pentru Ore:Minute, cum ar fi 13:30.\n\n"]
["ÎNCERCAȚI ASTA\nFormulele, mai ales cele mari, pot fi greu de citit uneori, dar le puteți împărți cu spații, astfel:\n\n=C28 & \" \" & TEXT(D28;\"DD.MM.YYYY\")"]
["MERITĂ EXPLORAT\nDacă nu știți ce cod de formatare să utilizați, puteți folosi Ctrl+1 > Număr pentru a formata orice celulă așa cum doriți. Apoi selectați opțiunea Particularizat. Puteți copia codul de formatare care se afișează înapoi în formulă."]
["Mai multe informații de pe web"]
["Totul despre funcția TEXT"]
["Combinarea textului și a numerelor"]
["Instruire gratuită pentru Excel online"]
{"$rows_empty":9}
[null,null,"Utilizarea textului și a numerelor"]
[null,null,"Data de azi:",{"$f":"TODAY()","v":"2021-10-19"}]
[null,null,"Ora curentă:",{"$f":"NOW()","v":44488.47909224537}]
[]
[null,null,"Unirea textului și a numerelor"]
[null,null,{"$f":"C28&\" \"&D28","v":"Data de azi: 44488"}]
[null,null,{"$f":"C29&\" \"&D29","v":"Ora curentă: 44488.4790922454"}]
[]
[null,null,"Formatarea textului și a numerelor"]
[null,null,{"$f":"C28 &\" \"& TEXT(D28,\"DD.MM.YYYY\")","v":"Data de azi: 19.10.2021"}]
[null,null,{"$f":"C29&\" \"&TEXT(D29,\"H:MM\")","v":"Ora curentă: 11:29"}]

{"sheet":"Instrucțiunile IF","index":7,"n_rows":37,"n_cols":6,"rows_kept":37,"merged":[[7,2,7,3]]}
["Instrucțiunile IF"]
["Instrucțiunile IF vă permit să efectuați comparații logice între condiții. O instrucțiune IF spune, în general, că dacă o condiție este adevărată se face ceva, altfel se face altceva. Formulele pot returna text, valori sau chiar mai multe calcule."]
["În celula D9, introduceți =IF(C9=\"Măr\";TRUE;FALSE). Răspunsul corect este TRUE. \n"]
["Copiați D9 în D10. Răspunsul aici ar trebui să fie FALSE, deoarece o portocală nu este un măr.\n"]
["Încercați alt exemplu, consultând formula din celula D12. Ați început cu =IF(C12<100;\"Mai mic decât 100\";\"Mai mare sau egal cu 100\"). Ce se întâmplă dacă introduceți un număr mai mare decât 100 în celula C12?\n"]
["DETALIU IMPORTANT\nTRUE și FALSE sunt deosebite de alte cuvinte din formulele Excel, deoarece nu trebuie să fie între ghilimele și Excel le va scrie automat cu litere mari. Nici numerele nu trebuie să fie între ghilimele. Textul obișnuit, cum ar fi Da sau Nu trebuie să fie între ghilimele, astfel: \n=IF(C9=\"Măr\";\"Da\";\"Nu\")"]
["Defilați în jos pentru mai multe detalii"]
["Următorul",null,"Instrucțiunile IF"]
["Instrucțiune IF cu altă funcție",null,"Măr"]
["Instrucțiunile IF pot impune și efectuarea de calcule suplimentare dacă este îndeplinită o anumită condiție. Aici vom evalua o celulă pentru a vedea dacă trebuie perceput Impozit pe vânzări și îl vom calcula în cazul în care condiția este adevărată.\n",null,"Portocală"]
["În celula F33, am introdus =IF(E33=\"Da\";F31*ImpozitVânzări;0), unde am configurat ImpozitVânzări ca zonă denumită cu valoarea de 0,0825. Formula spune că dacă celula E33 este egală cu Da, se înmulțește celula F31 cu ImpozitVânzări, altfel se returnează 0.\n\nÎncercați să modificați Da în Nu în celula E33 pentru a vedea calculul modificat."]
["Apoi am adăugat o instrucțiune IF pentru a calcula livrarea, dacă este necesară. În celula F35 veți vedea =IF(E35=\"Da\";SUM(D28:D29)*1.25;0). Aceasta spune „Dacă celula E35 este Da, luați suma coloanei Cantitate din tabelul de mai sus și înmulțiți-o cu 1,25; altfel, returnați 0”.\n",null,50,{"$f":"IF(C12<100,\"Mai mic decât 100\",\"Mai mare sau egal cu 100\")","v":"Mai mic decât 100"}]
["În continuare, modificați valoarea 1,25 din formula din celula F35 în „Livrare”. Când începeți să tastați, corectarea automată din Excel, ar trebui s-o găsească pentru dvs. Când se întâmplă acest lucru, apăsați Tab pentru a o introduce. Aceasta este o zonă denumită și am introdus-o din Formule > Definire nume. Dacă aveți nevoie vreodată să modificați costul de livrare, este de ajuns să faceți acest lucru doar într-un singur loc și puteți utiliza numele Livrare oriunde în registrul de lucru.\n\n"]
["DE REȚINUT\nAtunci când creați o formulă, Excel va plasa automat borduri colorate în jurul zonelor menționate în formulă, iar zonele corespunzătoare din formulă vor fi de aceeași culoare. Puteți vedea acest lucru dacă selectați celula F33 și apăsați F2 pentru a edita formula."]
["SFAT DE LA EXPERȚI\nZonele denumite vă permit să definiți termeni sau valori într-un singur loc și apoi să le reutilizați în cadrul unui registru de lucru. Puteți vedea toate zonele denumite din acest registru de lucru accesând Formule > Manager nume. Faceți clic aici pentru a afla mai multe.\n"]
["Anterior"]
["Următorul"]
["Mai multe informații de pe web"]
["Totul despre funcția IF"]
["Totul despre funcția IFS"]
["Instrucțiuni IF complexe"]
["Instruire gratuită pentru Excel online"]
[]
[]
[]
[]
[null,null,"Articol","Cantitate","Cost","Total"]
[null,null,"Widget",2,{"v":9.760711585683554,"d":"9.76 lei"},{"$f":"'Instrucțiunile IF'!$E$28:$E$29*'Instrucțiunile IF'!$D$28:$D$29","v":{"v":19.521423171367108,"d":"19.52 lei"}}]
[null,null,"Chestie",3,{"v":3.4189202461080024,"d":"3.42 lei"},{"$f":"'Instrucțiunile IF'!$E$28:$E$29*'Instrucțiunile IF'!$D$28:$D$29","v":{"v":10.256760738324008,"d":"10.26 lei"}}]
[]
[{"$nulls":3},"Subtotal",{"$f":"SUM('Instrucțiunile IF'!$E$28:$E$29)","v":{"v":13.179631831791557,"d":"13.18 lei"}},{"$f":"SUM('Instrucțiunile IF'!F28:F29)","v":{"v":29.778183909691116,"d":"29.78 lei"}}]
[]
[{"$nulls":3},"Impozit pe vânzări?","Da",{"$f":"IF(E33=\"Da\",F31*ImpozitVânzări,0)","v":{"v":2.456700172549517,"d":"2.46 lei"}}]
[]
[{"$nulls":3},"Livrare?","Da",{"$f":"IF(E35=\"Da\",SUM(D28:D29)*1.25,0)","v":{"v":6.25,"d":"6.25 lei"}}]
[]
[{"$nulls":3},"Total",null,{"$f":"SUM(F33,F31,F35)","v":{"v":38.48488408224063,"d":"38.48 lei"}}]

{"sheet":"VLOOKUP","index":8,"n_rows":43,"n_cols":7,"rows_kept":43}
["VLOOKUP"]
["VLOOKUP este una dintre cele mai utilizate funcții din Excel (și una dintre preferatele noastre). VLOOKUP vă permite să căutați o valoare într-o coloană din partea stângă, apoi returnează informațiile în altă coloană din dreapta dacă găsește o potrivire. VLOOKUP spune:\n"]
["=VLOOKUP(A1;B:C;2;FALSE)"]
["Ce doriți să căutați?"]
["Dacă o găsiți, cu câte coloane la dreapta doriți să obțineți o valoare?"]
["Unde doriți să o căutați?"]
["Doriți o potrivire exactă sau aproximativă?"]
["În celula D22, introduceți =VLOOKUP(C22;C17:D20;2;FALSE). Răspunsul corect pentru Mere este 50. VLOOKUP a căutat valoarea Mere, a găsit-o, apoi a mers cu o coloană la dreapta și a returnat valoarea.\n\n"]
["Acum încercați și singur în secțiunea Carne, în celula G22. Ar trebui să obțineți =VLOOKUP(F22;F17:G20;2;FALSE).\n\n"]
["EXPERIMENT\nÎncercați să selectați elemente diferite din listele verticale. Veți vedea cum celulele rezultate se actualizează instantaneu cu valori noi."]
["Defilați în jos pentru mai multe detalii"]
["Următorul"]
["VLOOKUP și #N/A"]
["Invariabil, veți întâmpina o situație în care VLOOKUP nu găsește ce i-ați solicitat și returnează o eroare (#N/A). Uneori, acest lucru se întâmplă deoarece valoarea de căutare pur și simplu nu există sau pentru că celula de referință nu are încă o valoare.\n"]
["Dacă știți că valoarea de căutare există, dar doriți să ascundeți eroarea dacă celula de căutare este necompletată, puteți utiliza o instrucțiune IF. În acest caz, vom încadra formula VLOOKUP existentă astfel în celula D43:\n\n=IF(C43=\"\";\"\";VLOOKUP(C43;C37:D41;2;FALSE))\n\nAcest lucru spune că, dacă celula C43 este egală cu nimic (\"\"), nu se returnează nimic, altfel se returnează rezultatele VLOOKUP. Observați a doua paranteză de închidere de la sfârșitul formulei. Aceasta închide instrucțiunea IF.\n"]
["Dacă nu sunteți sigur că valoarea de căutare există, dar tot doriți să suprimați eroarea #N/A, puteți utiliza o funcție de gestionare a erorilor numită IFERROR în celula G43: =IFERROR(VLOOKUP(F43;F37:G41;2;FALSE);\"\"). IFERROR spune că, dacă VLOOKUP returnează un rezultat valid, se afișează aceasta; altfel, nu se afișează nimic (\"\"). Aici nu am afișat nimic (\"\"), dar puteți utiliza și numere (0, 1, 2 etc.) sau text, cum ar fi „Formula nu este corectă”.\n",null,"Fructe","Sumă",null,"Carne","Sumă"]
["DETALIU IMPORTANT\nIFERROR este ceea ce se numește o rutină generală de tratare a erorilor, adică va suprima orice eroare pe care ar putea-o returna formula dvs. Acest lucru poate cauza probleme dacă Excel vă anunță că formula dvs. are o eroare legitimă, care trebuie remediată.\n\nO regulă de bază este să nu adăugați rutine de tratare a erorilor la formule până când nu sunteți absolut siguri că funcționează corect.",null,"Mere",50,null,"Carne de vită",50]
["Anterior",null,"Portocale",20,null,"Carne de pui",30]
["Următorul",null,"Banane",60,null,"Carne de porc",10]
["Mai multe informații de pe web",null,"Lămâi",40,null,"Pește",50]
["Totul despre funcția VLOOKUP"]
["Totul despre funcțiile INDEX/MATCH",null,"Mere",null,null,"Carne de porc"]
["Totul despre funcția IFERROR"]
["Utilizați rapoarte PivotTable pentru a analiza datele dintr-o foaie de lucru"]
["Instruire gratuită pentru Excel online"]
{"$rows_empty":9}
[null,null,"Dacă funcția SUM din celula D42 ar putea vorbi, ar spune următorul lucru: Adunați valorile din celulele D38, D39, D40 și D41."]
[null,null,"Articol","Sumă",null,"Articol","Sumă"]
[null,null,"Pâine",50,null,"Pâine",50]
[null,null,"Gogoși",100,null,"Gogoși",100]
[null,null,"Fursecuri",40,null,"Fursecuri",40]
[null,null,"Torturi",50,null,"Torturi",50]
[null,null,"Tarte",20,null,"Tarte",20]
[]
[{"$nulls":3},{"$f":"VLOOKUP(C43,C37:D41,2,FALSE)","v":{"$error":"#N/A"}},null,"Patiserie",{"$f":"IFERROR(VLOOKUP(F43,F37:G41,2,FALSE),\"\")","v":""}]

{"sheet":"Funcții condiționale","index":9,"n_rows":123,"n_cols":34,"rows_kept":123}
["Funcții condiționale - SUMIF"]
["Funcțiile condiționale vă permit să însumați, să faceți media, să contorizați sau să obțineți minimul sau maximul unei zone pe baza unei condiții date sau a criteriilor specificate. De exemplu, din toate fructele în listă, câte sunt mere? Sau, câte portocale sunt de tip Florida?",null,"Fructe","Sumă",null,"Fructe","Tip","Sumă",{"$nulls":17},"Fructe",null,"Mere",null,"Portocale",null,"Banane",null,"Lămâi"]
["SUMIF vă permite să adunați o zonă pe baza unui criteriu specificat, pe care îl căutați într-o altă zonă, cum ar fi câte Mere aveți. Selectați celula D17 și tastați =SUMIF(C3:C14;C17;D3:D14). SUMIF este structurat astfel:",null,"Mere",50,null,"Mere","Fuji",50,{"$nulls":17},"Mere",null,"Fuji",null,"Florida",null,"Cavendish",null,"Rough"]
["=SUMIF(C3:C14;C17;D3:D14)",null,"Portocale",20,null,"Portocale","Florida",20,{"$nulls":17},"Portocale",null,"Honeycrisp",null,"Navel",null,"Lady Finger",null,"Eureka"]
["Ce zonă doriți să analizați?",null,"Banane",60,null,"Banane","Cavendish",60,{"$nulls":17},"Banane"]
["Ce valoare (text sau număr) doriți să căutați?",null,"Lămâi",40,null,"Lămâi","Rough",40,{"$nulls":17},"Lămâi"]
["Pentru fiecare potrivire găsită, ce zonă doriți să adunați?",null,"Mere",50,null,"Mere","Honeycrisp",50]
["SUMIFS este la fel ca SUMIF, dar vă permite să utilizați mai multe criterii. Așadar, în acest exemplu, puteți căuta Fruct și Tip, în loc să căutați doar Fruct. Selectați celula H17 și tastați =SUMIFS(H3:H14;F3:F14;F17;G3:G14;G17). SUMIFS este structurat astfel:\n",null,"Portocale",20,null,"Portocale","Navel",20]
["=SUMIFS(H3:H14;F3:F14;F17;G3:G14;G17)",null,"Banane",60,null,"Banane","Lady Finger",60]
["Ce zonă doriți să însumați?",null,"Lămâi",40,null,"Lămâi","Eureka",40]
["Aceasta este prima zonă în care se caută potriviri",null,"Mere",50,null,"Mere","Honeycrisp",50]
["Acestea sunt criteriile pentru prima potrivire",null,"Portocale",20,null,"Portocale","Navel",20]
["Aceasta este a doua zonă în care se caută potriviri",null,"Banane",60,null,"Banane","Cavendish",60]
["Acestea sunt criteriile pentru a doua potrivire",null,"Lămâi",40,null,"Lămâi","Eureka",40]
["SFAT DE LA EXPERȚI\nFiecare dintre celulele Fruct și Tip are o listă verticală în care puteți selecta diferite fructe. Încercați și vedeți cum formulele se actualizează automat."]
["Defilați în jos pentru mai multe detalii",null,"Fructe","SUMIF",null,"Fructe","Tip","SUMIFS"]
["Următorul pas",null,"Mere",null,null,"Portocale","Florida"]
["Funcții condiționale - COUNTIF"]
["COUNTIF și COUNTIFS vă permit să numărați valorile dintr-o zonă pe baza unor criterii pe care le specificați. Acestea sunt puțin diferite față de celelalte funcții IF și IFS, deoarece au doar o zonă de criterii. Ele nu evaluează o zonă, apoi caută în alta pentru a rezuma."]
["Selectați celula D64 și tastați =COUNTIF(C50:C61;C64). COUNTIF este structurat astfel:"]
["=COUNTIF(C50:C61;C64)"]
["Ce zonă doriți să analizați?"]
["Ce valoare (text sau număr) doriți să căutați?"]
["COUNTIFS este la fel ca SUMIF, dar vă permite să utilizați mai multe criterii. Așadar, în acest exemplu, puteți căuta Fruct și Tip, în loc să căutați doar Fruct. Selectați celula H64 și tastați =COUNTIFS(F50:F61;F64;G50:G61;G64). COUNTIFS este structurat astfel:\n"]
["=COUNTIFS(F50:F61;F64;G50:G61;G64)"]
["Aceasta este prima zonă de numărat"]
["Acestea sunt criteriile pentru prima potrivire"]
["Aceasta este a doua zonă de numărat"]
["Acestea sunt criteriile pentru a doua potrivire"]
["Defilați în jos pentru mai multe detalii"]
["Următorul"]
["Mai multe funcții condiționale"]
["Ați văzut deja SUMIF, SUMIFS, COUNTIF și COUNTIFS. Acum puteți încerca pe cont propriu cu celelalte funcții, cum ar fi AVERAGEIF/S, MAXIFS, MINIFS. Toate sunt structurate la fel, așadar, odată ce scrieți o formulă, puteți înlocui doar numele funcției cu cel dorit. Am scris toate funcțiile de care veți avea nevoie pentru celula E106, astfel încât să puteți să le copiați și să le lipiți sau puteți încerca să le tastați singur ca să exersați.\n\nSUMIF \t=SUMIF(C92:C103;C106;E92:E103) \nSUMIFS \t=SUMIFS(E92:E103;C92:C103;C106;D92:D103;D106) \nAVERAGEIF \t=AVERAGEIF(C92:C103;C106;E92:E103) \nAVERAGEIFS\t=AVERAGEIFS(E92:E103;C92:C103;C106;D92:D92;D106)\nCOUNTIF \t=COUNTIF(C92:C103;C106)\nCOUNTIFS \t=COUNTIFS(C92:C103;C106;D92:D103;D106) \nMAXIFS \t=MAXIFS(E92:E103;C92:C103;C10;D92:D103;D106)\nMINIFS \t=MINIFS(E92:E103;C92:C103;C106;D92:D103;D106)\n"]
["Defilați în jos pentru mai multe detalii"]
["Următorul"]
["SUMIF cu un argument valoare"]
["Iată un exemplu de funcție SUMIF folosind mai mare decât (>) pentru a găsi toate valorile mai mari decât o anumită valoare:"]
[{"$f":"SUMIF(D118:D122,\">=50\")","v":200}]
["Adunați valori pe baza următorului criteriu:"]
["...Examinați aceste celule...\n "]
["… și dacă valoarea este mai mare decât 50, adunați-o.\n "]
["NOTĂ: Dacă credeți că utilizați prea multe formule condiționale, este posibil ca raportul PivotTable să fie o soluție mai bună. Consultați acest articol PivotTable pentru mai multe informații."]
["Mai multe informații de pe web"]
["Totul despre funcția SUMIF"]
["Totul despre funcția SUMIFS"]
["Totul despre funcția COUNTIF"]
["Totul despre funcția COUNTIFS"]
["Totul despre funcția AVERAGEIF"]
["Totul despre funcția AVERAGEIFS",null,"Fructe","Sumă",null,"Fructe","Tip","Sumă"]
["Totul despre funcția MINIFS",null,"Mere",50,null,"Mere","Fuji",50]
["Totul despre funcția MAXIFS",null,"Portocale",20,null,"Portocale","Florida",20]
["Creați o listă verticală",null,"Banane",60,null,"Banane","Cavendish",60]
["Instruire gratuită pentru Excel online",null,"Lămâi",40,null,"Lămâi","Rough",40]
["Înapoi la început",null,"Mere",50,null,"Mere","Honeycrisp",50]
["Următorul",null,"Portocale",20,null,"Portocale","Navel",20]
[null,null,"Banane",60,null,"Banane","Lady Finger",60]
[null,null,"Lămâi",40,null,"Lămâi","Eureka",40]
[null,null,"Mere",50,null,"Mere","Honeycrisp",50]
[null,null,"Portocale",20,null,"Portocale","Navel",20]
[null,null,"Banane",60,null,"Banane","Cavendish",60]
[null,null,"Lămâi",40,null,"Lămâi","Eureka",40]
[]
[null,null,"Fructe","COUNTIF",null,"Fructe","Tip","COUNTIFS"]
[null,null,"Mere",{"$f":"COUNTIF(C50:C61,C64)","v":3},null,"Portocale","Florida",{"$f":"COUNTIFS(F50:F61,F64,G50:G61,G64)","v":1}]
{"$rows_empty":26}
[null,null,"Fructe","Tip","Sumă"]
[null,null,"Mere","Fuji",50]
[null,null,"Portocale","Florida",20]
[null,null,"Banane","Cavendish",60]
[null,null,"Lămâi","Rough",40]
[null,null,"Mere","Honeycrisp",50]
[null,null,"Portocale","Navel",20]
[null,null,"Banane","Lady Finger",60]
[null,null,"Lămâi","Eureka",40]
[null,null,"Mere","Honeycrisp",50]
[null,null,"Portocale","Navel",20]
[null,null,"Banane","Cavendish",60]
[null,null,"Lămâi","Eureka",40]
[]
[null,null,"Fructe","Tip","Încercați"]
[null,null,"Lămâi","Eureka",{"$f":"AVERAGEIFS(E92:E103,C92:C103,C106,D92:D103,D106)","v":40}]
{"$rows_empty":10}
[null,null,"Articol","Sumă"]
[null,null,"Pâine",50]
[null,null,"Gogoși",100]
[null,null,"Fursecuri",40]
[null,null,"Torturi",50]
[null,null,"Tarte",20]
[{"$nulls":3},{"$f":"SUMIF(D118:D122,\">=50\")","v":200}]

{"sheet":"Expertul de funcții","index":10,"n_rows":14,"n_cols":4,"rows_kept":14}
["Lăsați Expertul de funcții să vă ghideze"]
["Dacă știți numele funcției dorite, dar nu sunteți sigur cum s-o construiți, puteți utiliza Expertul de funcții pentru a vă ajuta.\n"]
["Selectați celula D10, apoi accesați Formule > Inserare funcție > tastați VLOOKUP în caseta Căutați o funcție și apăsați SALT. Atunci când vedeți VLOOKUP evidențiat, faceți clic pe OK în partea de jos. Atunci când selectați o funcție din listă, Excel va afișa sintaxa ei.\n"]
["În continuare, introduceți argumentele funcției în casetele text corespunzătoare. Pe măsură ce le introduceți, Excel le va evalua-l și va afișa rezultatul lor, cu rezultatul final în partea de jos. Pe măsură ce introduceți fiecare secțiune, criteriile pentru fiecare argument sunt listate în partea de jos a formularului. Apăsați OK după ce ați terminat și Excel va introduce formula pentru dvs.\n\n\n",null,"Fructe","Sumă"]
["ÎNCERCAȚI ASTA\nAr trebui să obțineți =VLOOKUP(C10;C5:D8;2;FALSE)",null,"Mere",50]
["DE REȚINUT\nPuteți să tastați referințe de celule și zone sau să le selectați cu mouse-ul.",null,"Portocale",20]
["DE REȚINUT\nAtunci când introduceți argumentul pentru fiecare secțiune, descrierea lui va fi afișată în partea de jos a formularului, deasupra rezultatul Formulei.\n",null,"Banane",60]
["Anterior",null,"Lămâi",40]
["Următorul"]
["Mai multe informații de pe web",null,"Mere",{"$f":"VLOOKUP(C10,C5:D8,2,FALSE)","v":50}]
["Prezentare generală a formulelor din Excel"]
["Funcții Excel (după categorie)"]
["Funcții Excel (în ordine alfabetică)"]
["Instruire gratuită pentru Excel online"]

{"sheet":"Erorile din formule","index":11,"n_rows":36,"n_cols":4,"rows_kept":36}
["Remedierea erorilor din formule"]
["La un moment dat, veți întâlni o formulă cu o eroare, pe care Excel o va afișa cu #NumeEroare. Erorile pot fi utile, deoarece ele arată când ceva nu funcționează corect, dar pot fi dificil de remediat. Din fericire, există câteva opțiuni care vă pot ajuta să depistați sursa erorii și s-o remediați.\n"]
["Verificarea erorilor - accesați Formule > Verificare erori. Acest lucru va încărca o casetă de dialog care vă va spune cauza generală a erorii dvs. În celula D9, eroarea #N/A apare deoarece nu există nicio valoare care să se potrivească cu „Măr”. Puteți să remediați acest lucru utilizând o valoare care există, să suprimați eroarea cu IFERROR sau s-o ignorați, în ideea că ea va dispărea atunci când utilizați o valoare care există.\n",null,"Fructe","Sumă"]
["Dacă faceți clic pe Ajutor despre această eroare, se va deschide un subiect de ajutor specific mesajului de eroare. Dacă faceți clic pe Afișare etape calcul, se va încărca o casetă de dialog Evaluare formulă.\n",null,"Mere",50]
["De fiecare dată când faceți clic pe Evaluare, Excel va parcurge secțiunea, câte o secțiune pe rând. Nu vă va spune neapărat de ce apare o eroare, dar vă va arăta unde. De acolo, citiți subiectul de ajutor pentru a deduce ce nu a mers bine cu formula dvs.\n",null,"Portocale",20]
["EXPERIMENT\nCe este în neregulă aici? Sfat: Încercăm să ADUNĂM toate elementele.",null,"Banane",60]
["DE REȚINUT\nUn clic pe Opțiuni vă va permite să stabiliți reguli pentru atunci când erorile din Excel sunt afișate sau ignorate.\n",null,"Lămâi",40]
["Anterior"]
["Următorul",null,"Măr",{"$f":"VLOOKUP(C9,C3:D7,2,FALSE)","v":{"$error":"#N/A"}}]
["Mai multe informații de pe web"]
["Detectarea erorilor din formule"]
["Cum să evitați formulele eronate"]
["Evaluați o formulă imbricată pas cu pas"]
["Instruire gratuită pentru Excel online"]
{"$rows_empty":15}
[null,null,"Fructe","Sumă"]
[null,null,"Mere",50]
[null,null,"Portocale",20]
[null,null,"Banane",60]
[null,null,"Lămâi",40]
[]
[null,null,"Total",{"$f":"sume(D31:D34)","v":{"$error":"#NAME?"}}]

{"sheet":"Aflați mai multe","index":12,"n_rows":5,"n_cols":1,"rows_kept":5}
["Aveți mai multe întrebări despre Excel?"]
["Apăsați ALT+Q și tastați ce doriți să știți."]
["Mergeți mai departe. Puteți învăța mai multe cu Excel:"]
["Comunitate: Puneți întrebări și conectați-vă cu alți fani Excel.\n"]
["Care mai sunt noutățile?\nAbonații Office 365 primesc continuu actualizări și caracteristici noi.\n\n"]